bitfinex-derivatives/quotes_SOLF0:USTF0_20240910
["timestamp","ask_amount","ask_price","bid_price","bid_amount"]
[1725997156597,11.26,136.41,136.38,3.666]
[1725997157097,11.26,136.41,136.36,2.6817]
[1725997157692,11.26,136.41,136.38,3.6658]
[1725997162801,11.26,136.39,136.37,3.6662]
[1725997163891,1.3839,136.47,136.38,3.6659]
[1725997164091,11.26,136.4,136.38,3.6659]
[1725997164795,11.26,136.4,136.39,3.6657]
[1725997165099,11.26,136.4,136.36,2.6817]
[1725997165587,11.26,136.39,136.32,11.26]
[1725997165794,11.26,136.39,136.32,12.6364]
[1725997166096,3.61229826,136.4,136.32,12.6364]
[1725997166097,11.26,136.36,136.32,1.3764]
[1725997166591,11.26,136.36,136.33,3.6672]
[1725997167707,11.26,136.36,136.34,3.667]
[1725997168090,11.26,136.36,136.32,1.3764]
[1725997168298,11.26,136.36,136.33,3.6672]
[1725997168501,11.26,136.36,136.32,1.3764]
[1725997169501,11.26,136.35,136.31,1.3335]
[1725997169803,11.26,136.32,136.26,2.649]
[1725997170204,11.26,136.32,136.29,3.6683]
[1725997171801,11.26,136.32,136.28,3.6686]
[1725997172200,11.26,136.32,136.26,2.649]
[1725997172201,11.26,136.3,136.26,1.315]
[1725997172503,11.26,136.3,136.27,3.6687]
[1725997172894,11.26,136.29,136.26,3.6691]
[1725997177599,11.26,136.29,136.27,3.6689]
[1725997180104,11.26,136.29,136.23,12.6459]
[1725997180301,11.26,136.29,136.24,11.26]
[1725997181013,11.26,136.29,136.28,3.6687]
[1725997181815,11.26,136.29,136.27,3.6689]
[1725997183213,11.26,136.29,136.28,3.6687]
[1725997187013,11.26,136.29,136.27,3.6688]
[1725997187708,11.26,136.29,136.28,3.6687]
[1725997189515,11.26,136.29,136.27,3.6689]
[1725997190320,11.26,136.28,136.26,3.6692]
[1725997190617,11.26,136.27,136.23,1.3859]
[1725997192208,11.26,136.27,136.26,3.6692]
[1725997195715,11.26,136.27,136.25,3.6694]
[1725997196118,3.9844,136.31,136.23,1.3859]
[1725997196313,11.26,136.27,136.26,3.6691]
[1725997196518,2.6272,136.31,136.23,12.6459]
[1725997196718,11.26,136.29,136.23,12.6459]
[1725997197617,11.26,136.29,136.27,3.6688]
[1725997197921,11.26,136.29,136.23,1.3859]
[1725997198119,11.26,136.29,136.23,12.6459]
[1725997198315,11.26,136.29,136.28,3.6687]
[1725997198621,11.26,136.29,136.23,12.6459]
[1725997198813,11.26,136.29,136.27,3.6688]
[1725997199013,11.26,136.29,136.23,12.6459]
[1725997199213,11.26,136.28,136.23,1.3859]
[1725997199413,11.26,136.28,136.26,3.6691]
[1725997200315,11.26,136.28,136.25,3.6694]
[1725997200724,11.26,136.26,136.25,3.6694]
[1725997202426,11.26,136.26,136.24,3.6696]
[1725997202626,11.26,136.26,136.22,1.3561]
[1725997202825,2.6272,136.31,136.22,1.3561]
[1725997203022,11.26,136.27,136.26,3.6691]
[1725997205324,1.3316,136.31,136.22,11.26]
[1725997205526,11.26,136.32,136.25,11.26]
[1725997205735,11.26,136.32,136.27,11.26]
[1725997205927,11.26,136.32,136.31,3.6679]
[1725997206136,11.26,136.34,136.28,3.60410292]
[1725997206439,11.26,136.34,136.27,11.26]
[1725997206440,11.26,136.34,136.32,3.6674]
[1725997206735,11.26,136.38,136.31,11.26]
[1725997206930,11.26,136.38,136.32,11.26]
[1725997207242,11.26,136.38,136.32,14.87988463]
[1725997207641,11.26,136.38,136.36,3.6663]
[1725997207941,11.26,136.38,136.32,14.87988463]
[1725997208241,3.9596,136.42,136.38,3.6659]
[1725997208440,3.9596,136.42,136.34,11.26]
[1725997208441,11.26,136.4,136.34,11.26]
[1725997209435,11.26,136.4,136.34,12.6491]
[1725997209932,11.26,136.37,136.32,3.61988463]
[1725997210240,11.26,136.37,136.31,11.26]
[1725997210440,11.26,136.37,136.31,14.90300102]
[1725997211143,11.26,136.37,136.34,3.6668]
[1725997211532,11.26,136.37,136.31,14.90300102]
[1725997211738,11.26,136.39,136.32,11.26]
[1725997212535,1.3304,136.42,136.35,11.26]
[1725997212842,12.5904,136.42,136.35,11.26]
[1725997213233,11.26,136.4,136.34,11.26]
[1725997213634,11.26,136.4,136.37,3.666]
[1725997215042,12.5904,136.42,136.38,3.6658]
[1725997215242,2.7119,136.46,136.38,11.26]
[1725997215440,4.0468,136.46,136.39,11.26]
[1725997215746,15.3068,136.46,136.4,3.6654]
[1725997216138,15.3068,136.46,136.39,14.8559]
[1725997216541,15.3068,136.46,136.39,11.26]
[1725997217338,1.3349,136.46,136.39,11.26]
[1725997218043,11.26,136.45,136.38,14.99266666]
[1725997218248,11.26,136.45,136.38,11.26]
[1725997219042,11.26,136.45,136.38,14.96059397]
[1725997219343,1.3349,136.46,136.36,11.26]
[1725997219643,11.26,136.45,136.39,11.26]
[1725997219840,11.26,136.45,136.4,11.26]
[1725997221253,1.3349,136.46,136.4,11.26]
[1725997222145,4.9988,136.46,136.4,11.26]
[1725997223046,2.6932,136.52,136.43,11.26]
[1725997223245,11.26,136.5,136.44,11.26]
[1725997223539,11.26,136.5,136.44,14.85876814]
[1725997223749,14.923,136.5,136.44,3.59876814]
[1725997224448,8.57193305,136.51,136.44,3.59876814]
[1725997224651,11.26,136.5,136.44,3.59876814]
[1725997226848,14.9229,136.5,136.44,3.59876814]
[1725997227751,11.26,136.49,136.42,3.73029184]
[1725997228054,11.26,136.48,136.41,11.26]
[1725997228345,11.26,136.48,136.42,3.64939312]
[1725997228744,3.6638,136.47,136.41,11.26]
[1725997228945,11.26,136.46,136.41,11.26]
[1725997229452,11.26,136.46,136.41,14.88630497]
[1725997229751,11.26,136.46,136.4,11.26]
[1725997230253,14.9239,136.46,136.4,11.26]
[1725997230552,14.9239,136.46,136.4,14.90426242]
[1725997231039,11.26,136.46,136.4,14.90426242]
[1725997231538,11.26,136.46,136.41,11.26]
[1725997231742,3.6634,136.48,136.43,11.26]
[1725997232446,14.9231,136.49,136.43,11.26]
[1725997232649,11.26,136.5,136.44,11.26]
[1725997232854,12.556,136.51,136.45,11.26]
[1725997233154,16.30956551,136.51,136.45,11.26]
[1725997233553,12.556,136.51,136.45,11.26]
[1725997233747,3.6628,136.5,136.45,11.26]
[1725997234855,3.6632,136.49,136.44,11.26]
[1725997236251,3.6634,136.48,136.44,11.26]
[1725997236753,14.9229,136.5,136.44,11.26]
[1725997237056,11.26,136.5,136.44,11.26]
[1725997237354,3.6636,136.48,136.44,11.26]
[1725997237855,11.26,136.5,136.44,11.26]
[1725997238359,3.6635,136.48,136.44,11.26]
[1725997239558,11.26,136.5,136.44,11.26]
[1725997242856,1.296,136.51,136.45,11.26]
[1725997243054,4.89141785,136.51,136.45,11.26]
[1725997243950,1.296,136.51,136.45,11.26]
[1725997244255,155.53122913,136.53,136.47,11.26]
[1725997244448,14.88730005,136.53,136.47,11.26]
[1725997244650,4.1941,136.58,136.48,11.26]
[1725997244853,11.26,136.54,136.48,11.26]
[1725997247461,11.26,136.54,136.42,4.0711]
[1725997247664,11.26,136.53,136.46,11.26]
[1725997247957,11.26,136.53,136.48,11.26]
[1725997248147,11.26,136.54,136.48,11.26]
[1725997249953,11.26,136.53,136.47,11.26]
[1725997250159,11.26,136.52,136.45,11.26]
[1725997250459,3.72334188,136.51,136.45,11.26]
[1725997253754,7.86941705,136.58,136.5,11.26]
[1725997254065,11.26,136.56,136.5,11.26]
[1725997254259,11.26,136.56,136.52,3.6622]
[1725997254462,11.26,136.56,136.5,11.26]
[1725997254864,11.26,136.56,136.51,3.6623]
[1725997255258,11.26,136.56,136.5,11.26]
[1725997256167,11.26,136.55,136.48,11.26]
[1725997256561,11.26,136.55,136.48,14.84353078]
[1725997256956,11.26,136.56,136.5,11.26]
[1725997257163,12.6349,136.57,136.5,11.26]
[1725997258462,1.3749,136.57,136.53,11.26]
[1725997258861,1.3749,136.57,136.49,4.0114]
[1725997258862,5.04860117,136.57,136.49,4.0114]
[1725997259066,1.3749,136.57,136.52,11.26]
[1725997261363,11.26,136.62,136.54,11.26]
[1725997261568,1.4094,136.62,136.54,11.26]
[1725997261765,11.26,136.61,136.54,11.26]
[1725997262069,11.26,136.61,136.49,4.0114]
[1725997262070,1.4094,136.62,136.56,11.26]
[1725997262870,1.4094,136.62,136.56,14.921]
[1725997263167,1.4094,136.62,136.56,11.26]
[1725997264268,12.6694,136.62,136.56,11.26]
[1725997264773,11.26,136.6,136.49,4.0114]
[1725997264970,11.26,136.59,136.53,11.26]
[1725997265279,11.26,136.58,136.52,11.26]
[1725997265575,3.57210869,136.57,136.52,11.26]
[1725997265873,11.26,136.58,136.52,11.26]
[1725997266376,14.88118215,136.58,136.52,11.26]
[1725997270275,1.4094,136.62,136.53,11.26]
[1725997270481,11.26,136.61,136.55,11.26]
[1725997270876,11.26,136.61,136.56,3.661]
[1725997271277,11.26,136.61,136.55,11.26]
[1725997271682,11.26,136.61,136.57,3.6609]
[1725997272177,11.26,136.61,136.49,4.0114]
[1725997272371,11.26,136.6,136.53,11.26]
[1725997272776,11.26,136.6,136.54,3.6615]
[1725997273179,11.26,136.58,136.53,11.26]
[1725997273482,11.26,136.58,136.53,14.9217]
[1725997273685,11.26,136.58,136.53,11.26]
[1725997274083,17.59,136.61,136.54,3.6617]
[1725997274881,17.59,136.61,136.55,3.6614]
[1725997275178,22.59956749,136.62,136.55,3.6614]
[1725997275377,22.59956749,136.62,136.52,17.59]
[1725997276379,17.59,136.6,136.5,17.59]
[1725997280283,17.59,136.6,136.54,3.6616]
[1725997281090,17.59,136.6,136.52,3.662]
[1725997281287,17.59,136.6,136.5,17.59]
[1725997282087,17.59,136.6,136.52,3.6621]
[1725997282988,17.59,136.6,136.51,3.6623]
[1725997283194,17.59,136.58,136.51,3.6623]
[1725997283395,1.3689,136.57,136.51,3.6623]
[1725997284189,1.3689,136.57,136.49,7.58811453]
[1725997285503,1.3689,136.57,136.52,3.6621]
[1725997286595,1.3689,136.57,136.51,3.6625]
[1725997286804,1.3689,136.57,136.49,7.58811453]
[1725997286994,1.3689,136.57,136.5,3.6626]
[1725997287496,1.3689,136.57,136.51,3.6625]
[1725997287891,1.3689,136.57,136.49,6.28871453]
[1725997288098,1.3689,136.57,136.52,3.6621]
[1725997288696,1.3689,136.57,136.51,3.6624]
[1725997292003,1.3689,136.57,136.48,17.59]
[1725997292004,17.59,136.55,136.47,17.59]
[1725997292201,21.23952004,136.55,136.47,17.59]
[1725997292502,21.23952004,136.55,136.46,1.272]
[1725997293299,21.23952004,136.55,136.48,3.6632]
[1725997294106,11.25,136.52,136.48,3.6632]
[1725997295907,11.25,136.52,136.47,3.6634]
[1725997296302,3.64952004,136.55,136.48,11.25]
[1725997296502,11.25,136.54,136.49,3.6628]
[1725997296707,14.9344034,136.54,136.49,3.6628]
[1725997297710,3.6844034,136.54,136.5,3.6627]
[1725997297908,11.25,136.54,136.5,3.6627]
[1725997298109,3.69173262,136.53,136.48,11.25]
[1725997298406,3.69173262,136.53,136.49,3.6629]
[1725997299407,11.25,136.54,136.49,3.6629]
[1725997299609,11.25,136.53,136.49,3.6629]
[1725997300005,11.25,136.53,136.48,3.6632]
[1725997300402,11.25,136.53,136.47,12.6552]
[1725997300603,11.25,136.53,136.49,3.6629]
[1725997300804,14.9082863,136.53,136.49,3.6629]
[1725997302903,14.9082863,136.53,136.48,3.6632]
[1725997303304,14.9082863,136.53,136.47,12.6552]
[1725997303499,14.9082863,136.53,136.49,3.663]
[1725997304206,14.9082863,136.53,136.48,3.6632]
[1725997304810,14.9082863,136.53,136.47,12.6552]
[1725997305020,11.25,136.5,136.37,7.3325]
[1725997305206,3.6582863,136.53,136.46,11.25]
[1725997305406,1.3689,136.57,136.49,11.25]
[1725997305605,12.6189,136.57,136.49,11.25]
[1725997306308,12.6189,136.57,136.51,3.6623]
[1725997306811,1.3689,136.57,136.51,11.25]
[1725997307117,1.3689,136.57,136.52,11.25]
[1725997307311,11.25,136.59,136.52,11.25]
[1725997307812,11.25,136.59,136.54,3.6615]
[1725997308013,151.82076845,136.6,136.53,11.25]
[1725997308209,163.07076845,136.6,136.53,11.25]
[1725997308813,163.07076845,136.6,136.55,3.6612]
[1725997309515,151.82076845,136.6,136.55,3.6612]
[1725997309715,151.82076845,136.6,136.54,1.3782]
[1725997310316,2.7309,136.64,136.57,11.25]
[1725997310615,13.9809,136.64,136.57,11.25]
[1725997310820,17.60105076,136.64,136.57,11.25]
[1725997311314,7.64814153,136.7,136.57,11.25]
[1725997311515,11.25,136.66,136.6,3.6599]
[1725997311812,11.25,136.66,136.56,5.01454461]
[1725997312112,11.25,136.64,136.58,3.6606]
[1725997312313,11.25,136.64,136.57,11.25]
[1725997312512,11.25,136.64,136.59,11.25]
[1725997313705,11.25,136.64,136.59,14.9102]
[1725997314916,11.25,136.64,136.59,11.25]
[1725997316015,3.74294313,136.63,136.59,11.25]
[1725997318213,11.25,136.64,136.57,14.9109]
[1725997318413,11.25,136.63,136.57,11.25]
[1725997318620,3.65250911,136.63,136.57,11.25]
[1725997318915,11.25,136.64,136.58,11.25]
[1725997319109,3.56976382,136.63,136.58,11.25]
[1725997320311,11.25,136.64,136.56,1.3585]
[1725997320507,11.25,136.63,136.56,12.6085]
[1725997320715,3.9947,136.69,136.58,11.25]
[1725997320716,11.25,136.64,136.58,11.25]
[1725997322521,11.25,136.65,136.59,11.25]
[1725997322715,11.25,136.67,136.61,11.25]
[1725997323619,11.25,136.62,136.4,33.0057]
[1725997323820,11.25,136.62,136.55,11.25]
[1725997324118,3.6601,136.6,136.55,11.25]
[1725997325320,14.8874978,136.62,136.54,3.9584]
[1725997325513,11.25,136.59,136.54,2.6805]
[1725997326024,3.6613,136.56,136.54,2.6805]
[1725997326714,1.3703,136.61,136.54,2.6805]
[1725997327218,3.6604,136.59,136.54,2.6805]
[1725997327610,1.3703,136.61,136.54,2.6805]
[1725997327811,17.59,136.63,136.54,2.6805]
[1725997328011,17.59,136.63,136.54,3.958]
[1725997328414,3.6601,136.6,136.54,3.958]
[1725997328710,21.27434546,136.63,136.54,3.958]
[1725997330322,3.6606,136.59,136.54,3.958]
[1725997330718,21.27434546,136.63,136.54,3.958]
[1725997330719,3.6607,136.58,136.54,3.958]
[1725997330918,21.27434546,136.63,136.54,3.958]
[1725997331422,3.6611,136.57,136.54,3.958]
[1725997331621,21.27434546,136.63,136.54,2.6805]
[1725997331925,3.6612,136.57,136.54,2.6805]
[1725997332422,21.27434546,136.63,136.54,2.6805]
[1725997334516,21.27434546,136.63,136.54,3.9576]
[1725997334720,3.6605,136.59,136.54,3.9576]
[1725997336617,21.27434546,136.63,136.54,3.9576]
[1725997338133,3.66,136.61,136.54,3.9576]
[1725997339026,17.59,136.61,136.54,2.6805]
[1725997339732,3.6608,136.58,136.54,2.6805]
[1725997340328,3.6609,136.57,136.54,2.6805]
[1725997340726,17.59,136.61,136.54,2.6805]
[1725997340928,3.6604,136.59,136.54,2.6805]
[1725997343534,18.8719,136.61,136.54,2.6805]
[1725997343736,3.6606,136.58,136.54,2.6805]
[1725997345237,3.6603,136.6,136.54,2.6805]
[1725997345427,1.2819,136.61,136.54,2.6805]
[1725997345837,3.6605,136.59,136.54,2.6805]
[1725997346236,1.2819,136.61,136.54,13.9305]
[1725997346439,12.5319,136.61,136.55,11.25]
[1725997349140,1.2819,136.61,136.54,13.9305]
[1725997349343,12.5319,136.61,136.54,13.9305]
[1725997351640,11.25,136.59,136.35,22.01]
[1725997351851,3.6618,136.54,136.48,11.25]
[1725997352136,1.3301,136.58,136.48,14.95074311]
[1725997352334,11.25,136.57,136.51,11.25]
[1725997352736,3.6613,136.56,136.51,11.25]
[1725997353442,3.6615,136.55,136.51,11.25]
[1725997354940,1.3301,136.58,136.49,7.73008104]
[1725997354941,11.25,136.58,136.52,11.25]
[1725997355339,3.661,136.57,136.52,11.25]
[1725997355849,11.25,136.58,136.49,7.73008104]
[1725997356044,11.25,136.58,136.51,11.25]
[1725997357539,3.6617,136.54,136.49,4.1044]
[1725997357739,3.6617,136.54,136.49,15.3544]
[1725997358247,11.25,136.56,136.5,11.25]
[1725997358443,1.312,136.6,136.51,11.25]
[1725997358646,3.661,136.57,136.51,11.25]
[1725997358850,11.25,136.58,136.53,11.25]
[1725997359143,14.9108,136.58,136.53,11.25]
[1725997359744,1.2819,136.61,136.55,11.25]
[1725997360148,3.6602,136.6,136.55,11.25]
[1725997365058,1.2819,136.61,136.55,11.25]
[1725997366147,1.2819,136.61,136.55,14.83429764]
[1725997366741,12.5319,136.61,136.55,14.83429764]
[1725997366944,12.5319,136.61,136.55,11.25]
[1725997367446,12.5319,136.61,136.55,14.84774408]
[1725997368151,12.5319,136.61,136.55,11.25]
[1725997368356,12.5319,136.61,136.55,14.95651138]
[1725997368655,12.5319,136.61,136.55,3.70651138]
[1725997368855,12.5319,136.61,136.54,11.25]
[1725997369456,12.5319,136.61,136.54,14.82247491]
[1725997373054,11.25,136.59,136.54,14.82247491]
[1725997373662,14.9105,136.59,136.54,14.82247491]
[1725997374453,1.2819,136.61,136.54,14.82247491]
[1725997374648,12.5319,136.61,136.54,14.82247491]
[1725997374851,12.5319,136.61,136.56,3.661]
[1725997375053,12.5319,136.61,136.54,14.82247491]
[1725997375654,12.5319,136.61,136.57,3.6608]
[1725997376551,12.5319,136.61,136.54,14.82247491]
[1725997376752,1.2819,136.61,136.54,14.82247491]
[1725997376957,12.5319,136.61,136.54,14.82247491]
[1725997378363,12.5319,136.61,136.56,3.661]
[1725997378862,1.2819,136.61,136.57,3.6609]
[1725997379063,12.5319,136.61,136.57,3.6609]
[1725997380163,12.5319,136.61,136.58,3.6606]
[1725997381564,1.2819,136.61,136.59,3.6603]
[1725997382062,7.64833764,136.7,136.59,3.6603]
[1725997382063,11.25,136.65,136.59,11.25]
[1725997382667,2.6808,136.68,136.61,3.6596]
[1725997382963,2.6808,136.68,136.59,11.25]
[1725997383165,11.25,136.65,136.61,3.6596]
[1725997384666,11.25,136.64,136.59,11.25]
[1725997385668,11.25,136.64,136.62,3.6595]
[1725997385968,11.25,136.64,136.59,11.25]
[1725997386169,2.6808,136.68,136.59,11.25]
[1725997386368,11.25,136.65,136.59,11.25]
[1725997387271,2.6808,136.68,136.61,3.6597]
[1725997387571,11.25,136.65,136.61,3.6597]
[1725997389366,2.6808,136.68,136.61,3.6597]
[1725997389572,11.25,136.65,136.61,3.6597]
[1725997390470,11.25,136.65,136.6,3.66]
[1725997390671,11.25,136.65,136.59,11.25]
[1725997390973,11.25,136.65,136.57,3.7391973]
[1725997390974,11.25,136.64,136.57,14.9891973]
[1725997391166,3.69224573,136.63,136.57,14.9891973]
[1725997391363,3.69224573,136.63,136.59,3.6602]
[1725997391665,3.69224573,136.63,136.57,14.9891973]
[1725997391865,3.69224573,136.63,136.58,3.6605]
[1725997392072,3.69224573,136.63,136.57,14.9891973]
[1725997392264,3.69224573,136.63,136.57,3.7391973]
[1725997392464,3.69224573,136.63,136.58,3.6606]
[1725997393186,2.6808,136.68,136.59,11.25]
[1725997393369,11.25,136.65,136.59,11.25]
[1725997393870,11.25,136.64,136.58,11.25]
[1725997394372,11.25,136.64,136.58,14.9105]
[1725997394574,11.25,136.62,136.56,1.3668]
[1725997394772,11.25,136.62,136.56,12.6168]
[1725997395164,3.72446364,136.63,136.55,6.44275597]
[1725997395165,11.25,136.61,136.55,6.44275597]
[1725997395365,11.25,136.61,136.55,1.3443]
[1725997395970,14.97125384,136.61,136.56,3.661]
[1725997396379,11.25,136.61,136.56,14.911]
[1725997396872,14.93170499,136.61,136.56,14.911]
[1725997398572,3.68170499,136.61,136.56,14.911]
[1725997400279,3.68170499,136.61,136.57,3.6609]
[1725997401673,12.6081,136.62,136.57,3.6609]
[1725997402277,16.24613065,136.62,136.57,3.6609]
[1725997402678,16.24613065,136.62,136.58,3.6606]
[1725997402876,12.6081,136.62,136.58,3.6606]
[1725997403076,1.2812,136.68,136.58,11.25]
[1725997403279,11.25,136.64,136.6,3.6599]
[1725997403582,1.4123,136.67,136.6,11.25]
[1725997403784,1.4123,136.67,136.62,3.6593]
[1725997403785,11.25,136.66,136.62,3.6593]
[1725997405186,1.4123,136.67,136.63,3.6593]
[1725997405376,1.4123,136.67,136.61,11.25]
[1725997406682,4.94972772,136.7,136.62,11.25]
[1725997407081,11.25,136.69,136.62,11.25]
[1725997407274,11.25,136.69,136.65,3.6586]
[1725997408190,2.6172,136.73,136.66,11.25]
[1725997408379,2.6172,136.73,136.61,4.0761]
[1725997408380,2.6172,136.73,136.67,11.25]
[1725997408778,6.23071449,136.73,136.67,11.25]
[1725997408980,6.23071449,136.73,136.69,3.6575]
[1725997409785,7.64150788,136.81,136.72,3.6569]
[1725997409986,159.18121203,136.87,136.71,11.25]
[1725997409987,12.5274,136.78,136.71,11.25]
[1725997410187,1.2774,136.78,136.73,11.25]
[1725997410574,1.2774,136.78,136.75,3.6559]
[1725997410777,159.47307211,136.87,136.75,11.25]
[1725997410986,11.25,136.82,136.77,3.6554]
[1725997411176,11.25,136.82,136.75,11.25]
[1725997411581,11.25,136.82,136.77,3.6555]
[1725997412880,11.25,136.82,136.76,3.6557]
[1725997414082,1.2774,136.83,136.77,3.6555]
[1725997414281,1.2774,136.83,136.75,11.25]
[1725997414480,12.5274,136.83,136.75,11.25]
[1725997414988,12.5274,136.83,136.77,3.6554]
[1725997416579,12.5274,136.83,136.75,11.25]
[1725997416983,12.5274,136.83,136.77,3.6554]
[1725997417481,12.5274,136.83,136.77,14.9054]
[1725997417683,1.2774,136.83,136.71,3.61790515]
[1725997417880,11.25,136.82,136.76,11.25]
[1725997418687,11.25,136.82,136.76,14.9058]
[1725997419093,11.25,136.81,136.75,11.25]
[1725997419387,11.25,136.82,136.76,11.25]
[1725997420395,12.5274,136.83,136.77,11.25]
[1725997421283,12.5274,136.83,136.79,3.6548]
[1725997421488,1.2774,136.83,136.79,11.25]
[1725997421691,3.73692679,136.84,136.79,11.25]
[1725997421896,11.25,136.85,136.8,3.6546]
[1725997422986,1.2766,136.91,136.75,3.9585]
[1725997423194,11.25,136.88,136.82,11.25]
[1725997423595,11.25,136.88,136.82,14.904]
[1725997423989,3.60747948,136.87,136.82,14.904]
[1725997424387,1.2766,136.91,136.82,14.904]
[1725997424693,11.25,136.87,136.78,3.69486926]
[1725997424895,11.25,136.87,136.8,11.25]
[1725997425387,4.84646181,136.91,136.83,11.25]
[1725997425584,11.25,136.89,136.83,11.25]
[1725997425789,11.25,136.87,136.81,11.25]
[1725997425991,4.84646181,136.91,136.75,7.55833914]
[1725997426196,11.25,136.86,136.8,11.25]
[1725997426389,11.25,136.86,136.81,3.6544]
[1725997426688,4.84646181,136.91,136.81,11.25]
[1725997426888,11.25,136.88,136.82,3.654]
[1725997427485,4.84646181,136.91,136.82,3.654]
[1725997427790,2.6545,136.93,136.86,11.25]
[1725997427984,3.62015114,136.92,136.86,11.25]
[1725997428191,1.3275,136.95,136.87,11.25]
[1725997428389,14.92643617,136.94,136.87,11.25]
[1725997428789,14.92643617,136.94,136.89,3.6522]
[1725997429191,1.3836,136.99,136.9,3.6519]
[1725997429394,11.25,136.96,136.9,11.25]
[1725997429596,1.3836,136.99,136.92,11.25]
[1725997429790,3.69690346,136.98,136.92,11.25]
[1725997430194,20.2104,137.01,136.9,17.54]
[1725997430389,6.3260034,137.01,136.9,17.54]
[1725997430594,2.6704,137.01,136.9,17.54]
[1725997430798,17.54,137.02,136.97,3.65]
[1725997430988,3.66547156,137.02,136.97,3.65]
[1725997431191,151.35456519,137.03,136.95,17.54]
[1725997431393,151.35456519,137.03,136.99,3.6495]
[1725997431694,151.35456519,137.03,136.96,17.54]
[1725997432295,151.35456519,137.03,136.94,21.4593]
[1725997432695,168.89456519,137.03,136.94,3.9193]
[1725997432899,17.54,137.0,136.9,17.54]
[1725997433601,1.3455,137.02,136.88,22.4124496]
[1725997433602,17.54,136.98,136.88,22.4124496]
[1725997434394,3.6512,136.94,136.88,22.4124496]
[1725997434603,3.6512,136.94,136.88,18.8225]
[1725997435302,17.54,136.98,136.88,18.8225]
[1725997435497,1.3419,136.97,136.88,18.8225]
[1725997435697,3.6513,136.93,136.88,18.8225]
[1725997437105,1.3664,137.01,136.88,18.8225]
[1725997437106,3.6511,136.94,136.88,18.8225]
[1725997437904,3.6506,136.96,136.9,17.54]
[1725997439207,154.9432754,137.03,136.93,17.54]
[1725997439401,154.9432754,137.03,136.94,1.3607]
[1725997439608,3.6495,137.0,136.94,1.3607]
[1725997439801,17.54,137.02,136.94,1.3607]
[1725997440404,17.54,137.0,136.88,1.2825]
[1725997440602,17.54,137.0,136.89,1.3949]
[1725997442098,3.6508,136.95,136.89,1.3949]
[1725997442903,3.6506,136.96,136.89,1.3949]
[1725997443912,3.6508,136.95,136.89,1.3949]
[1725997444098,17.54,136.98,136.89,1.3949]
[1725997444306,3.6509,136.95,136.89,1.3949]
[1725997445301,17.54,136.98,136.89,1.3949]
[1725997446011,3.6508,136.95,136.89,1.3949]
[1725997446399,3.651,136.94,136.89,1.3949]
[1725997446605,17.54,136.98,136.89,1.3949]
[1725997446911,3.6512,136.94,136.89,1.3949]
[1725997447112,1.4004,136.97,136.89,1.3949]
[1725997448202,3.6515,136.92,136.89,1.3949]